Cogmind - Beta 13 @@@ ROGUE MODE // 2024.04.02 @ 21:59:07 Player: Bulbasornado Result: Destroyed by G-50 Soldier with Heavy Laser Performance ------------- Evolutions (5) 2500 Regions Visited (10) 2000 Robots Destroyed (87) 435 Value Destroyed (2589) 2589 Prototype IDs (14) 280 Alien Tech Used (0) 0 Bonus (1754) 1754 TOTAL SCORE: 9558 Bonus ------- Met Warlord at Base 500 MAIN.C Attacked Warlord 500 Warlord Defense Kills 754 Cogmind --------- Core Integrity 0/1000 Matter 300/300 Energy 150/150 System Corruption 0% Temperature Hot (258) Movement Hovering (156) Ox1 Location -5/Warlord Parts ------- > --- POWER (1) -------- Light Angular Momentum Engine > --- PROPULSION (3) --- Backup Propulsion III Backup Propulsion III > --- UTILITY (9) ------ (None) > --- WEAPON (4) ------- Vortex Shotgun Vortex Shotgun > --- INVENTORY (5) ---- Improved Coolant Injector Advanced Shield Generator Vortex Cannon (26) Vortex Cannon (26) Long-range Missile Launcher Peak State ------------ > --- POWER ------------ Light Angular Momentum Engine > --- PROPULSION ------- Backup Propulsion III Backup Propulsion III > --- UTILITY ---------- Improved Medium Armor Plating Wardrone Bay > --- WEAPON ----------- Vortex Shotgun Vortex Shotgun > --- INVENTORY -------- Improved Coolant Injector Advanced Shield Generator Vortex Cannon Vortex Cannon Long-range Missile Launcher [Rating: 140] Favorites ----------- Power Subdweller Power Source Engine Subdweller Power Source Propulsion Light Treads Treads Light Treads Leg Aluminum Leg Wheel Wheel Hover Unit Backup Propulsion III Flight Unit Xenon Bombardment Thruster Utility Medium Storage Unit Device Shock Absorption System Storage Medium Storage Unit Processor Targeting Computer Hackware Hacking Suite Protection Improved Medium Armor Plating Weapon Subdweller Machine Gun Energy Gun Vortex Shotgun Energy Cannon Vortex Cannon Ballistic Gun Subdweller Machine Gun Ballistic Cannon Light Cannon Special Weapon Improved Plasma Cutter Slashing Weapon Makeshift Sword Piercing Weapon Vortex Lance Build | -11 -10 -10 -10 -9 -7 -6 -5 -5 -5 -5 ------- Run | Yrd Mat Min Sub Rec Fac Fac Fac Upp Upp War Slots Evolved 10 | . . . . . 6 2 2 . . . Power . | . . . . . . . . . . . Propulsion 1 | . . . . . . 1 . . . . Utility 7 | . . . . . 5 1 1 . . . Weapon 2 | . . . . . 1 . 1 . . . Parts Attached 118 | 11 21 6 10 4 14 18 20 2 3 9 Power 13 | 2 2 1 2 . 2 1 2 . . 1 Engine 13 | 2 2 1 2 . 2 1 2 . . 1 Core . | . . . . . . . . . . . Reactor . | . . . . . . . . . . . Propulsion 24 | 2 9 1 2 1 . 5 3 1 . . Treads 14 | . 2 1 2 1 . 5 3 . . . Leg 7 | . 7 . . . . . . . . . Wheel 2 | 2 . . . . . . . . . . Hover . | . . . . . . . . . . . Flight 1 | . . . . . . . . 1 . . Utility 40 | 3 3 . 2 2 10 5 9 1 2 3 Device 21 | 2 1 . . . 4 3 7 1 1 2 Storage 4 | 1 1 . 1 1 . . . . . . Processor 7 | . 1 . . . 3 1 1 . 1 . Hackware 3 | . . . . . 1 1 1 . . . Protection 5 | . . . 1 1 2 . . . . 1 Artifact . | . . . . . . . . . . . Weapon 41 | 4 7 4 4 1 2 7 6 . 1 5 Energy Gun 10 | 2 4 1 . . 1 . . . . 2 Energy Cannon 2 | . . . . . . . . . . 2 Ballistic Gun 14 | 2 3 1 1 1 1 3 2 . . . Ballistic Cannon 12 | . . 2 2 . . 4 4 . . . Launcher . | . . . . . . . . . . . Special Weapon 1 | . . . . . . . . . 1 . Impact Weapon . | . . . . . . . . . . . Slashing Weapon 1 | . . . 1 . . . . . . . Piercing Weapon 1 | . . . . . . . . . . 1 Special Melee Weapon . | . . . . . . . . . . . Unidentified Prototypes 6 | . . . . . . 2 . . . 4 Parts Lost 18 | . 2 . 1 1 . 2 8 3 . 1 Power 1 | . 1 . . . . . . . . . Propulsion 5 | . 1 . . . . . 3 1 . . Utility 8 | . . . . . . 2 3 2 . 1 Weapon 4 | . . . 1 1 . . 2 . . . Highest Loss Streak 3 | . 2 . 1 1 . 1 3 2 . 1 To Critical Strikes . | . . . . . . . . . . . Average Slot Usage (%) 82 | . 98 100 99 100 98 99 85 10 6 43 Engine 9 | . 13 14 13 14 7 6 4 . . 4 Treads 15 | . 6 28 28 28 15 20 13 . . . Leg 2 | . 17 . . . . . . . . . Hover 1 | . . . . . . . . . . 9 Device 5 | . 3 . . . 17 11 11 . . 6 Storage 8 | . 14 14 13 13 7 6 4 . . . Processor 12 | . 10 14 14 14 15 21 20 5 5 5 Hackware 1 | . . . . . 3 7 8 1 . . Protection 1 | . . . . . 6 4 . . . 4 Energy Gun 4 | . 15 14 . . . . . . . 9 Ballistic Gun 10 | . 12 11 11 17 22 14 9 . . . Ballistic Cannon 4 | . . 2 14 10 . 4 9 . . . Naked Turns 8 | . . . . . . . 8 . . . Heaviest Build 84 | 14 18 19 22 22 34 43 44 1 3 84 Greatest Support 78 | 20 40 40 40 40 40 78 78 6 3 16 Greatest Overweight (x) 13 | . 1 . . . . . 1 . . 13 Average Overweight (x) . | . . . . . . . . . . 1 Largest Inventory Capacity 10 | 8 10 10 10 10 10 10 10 5 5 5 Average Capacity 8 | 6 9 10 9 9 10 10 9 5 5 5 Most Carried 10 | 8 10 10 10 10 10 10 10 5 5 5 Average Carried 8 | 4 9 9 9 9 9 9 8 4 5 4 Final Capacity 10 | 8 10 10 10 10 10 10 5 5 5 5 Final Carried 10 | 8 10 10 10 10 10 10 5 5 5 5 Class Distribution -------------------- 73% | Mutant 17% | Scavenger-Tank 7% | Scavenger-Gunner Dominant Class ---------------- Mutant | -10/Materials Mutant | -10/Mines Mutant | -10/Subcaves Mutant | -9/Recycling Scavenger-Tank | -7/Factory Scavenger-Tank | -6/Factory Scavenger-Gunner | -5/Factory Mutant | -5/Upper Caves Mutant | -5/Upper Caves Mutant | -5/Warlord Resources | -11 -10 -10 -10 -9 -7 -6 -5 -5 -5 -5 ----------- Run | Yrd Mat Min Sub Rec Fac Fac Fac Upp Upp War Matter Collected 2636 | 300 300 95 206 128 137 741 275 85 155 214 Remotely . | . . . . . . . . . . . Salvage Created 3770 | 212 658 185 308 788 137 990 252 . . 240 Parts 176 | 11 42 14 20 26 8 39 7 . . 9 Haulers Intercepted 6 | . 2 . . . 2 1 1 . . . Recyclers Shooed 5 | . 2 . . 1 . 2 . . . . Parts Field Recycled . | . . . . . . . . . . . Retrieved Matter . | . . . . . . . . . . . Parts Self-Destructed 11 | . . . 9 . . . . . 2 . Prevented . | . . . . . . . . . . . Kills | -11 -10 -10 -10 -9 -7 -6 -5 -5 -5 -5 ------- Run | Yrd Mat Min Sub Rec Fac Fac Fac Upp Upp War Combat Hostiles Destroyed 50 | . 13 5 9 2 . 11 4 . . 6 Melee 1 | . . . 1 . . . . . . . Guns 35 | . 13 3 1 2 . 11 2 . . 3 Cannons 11 | . . 2 7 . . . 2 . . . AOE 3 | . . . . . . . . . . 3 Classes Destroyed 17 | 3 4 . 4 1 1 1 1 . . 2 Worker 5 | 2 1 1 . . . 1 . . . . Builder 2 | . . . . 1 . 1 . . . . Tunneler 6 | 5 . 1 . . . . . . . . Hauler 6 | . 2 . . . 2 1 1 . . . Recycler 11 | 1 . . . 8 . 2 . . . . Operator 1 | . 1 . . . . . . . . . Turret 2 | . . . 2 . . . . . . . Watcher 4 | . . . . . 2 1 1 . . . Swarmer 10 | . 3 3 4 . . . . . . . Grunt 24 | . 10 2 . . . 8 . . . 4 Duelist 1 | . . . . . . . . . . 1 Sentry 5 | . . . 1 2 . 1 1 . . . Hunter 1 | . . . . . . . 1 . . . Programmer 4 | . . . . . . 2 2 . . . Striker 1 | . . . . . . . . . . 1 Cobbler 1 | . . . 1 . . . . . . . Subdweller 4 | . . . 4 . . . . . . . Best Kill Streak 9 | 7 4 3 6 9 2 8 2 . . 6 Combat Bots Only 6 | . 4 3 4 1 . 6 1 . . 6 Max Kills in Single Turn 4 | 1 1 2 1 2 1 2 2 . . 4 Gunslinging 1 | . . 1 . . . . . . . . Exploded 3 | . . . . . . . . . . 3 Melee 1 | . . . 1 . . . . . . . Uniques/NPCs Destroyed . | . . . . . . . . . . . Combat | -11 -10 -10 -10 -9 -7 -6 -5 -5 -5 -5 -------- Run | Yrd Mat Min Sub Rec Fac Fac Fac Upp Upp War Hostile Shots Fired 400 | . 49 17 62 6 . 93 66 73 8 26 Missed 143 | . 12 2 27 2 . 27 25 38 5 5 Damage Taken 4161 | . 455 168 443 58 . 965 1012 532 37 491 Core 1227 | . 67 21 67 . . 68 351 453 37 163 Absorbed by Shields 257 | . . . . . . 100 157 . . . Ignored by Resistances 103 | . . . . . . 103 . . . . Regen/Repaired (Parts) 33 | . 33 . . . . . . . . . Core Remaining (%) 82 | 100 . . . 38 100 92 . . . . Volleys Fired 198 | 25 56 10 18 16 13 36 19 . . 5 Largest 4 | 2 2 2 2 2 3 3 4 . . 2 Hottest 147 | 90 100 75 69 58 81 86 147 . . 120 Shots Fired 471 | 50 107 20 36 30 39 108 71 . . 10 Gun 381 | 50 107 15 18 30 39 78 34 . . 10 Cannon 90 | . . 5 18 . . 30 37 . . . Launcher . | . . . . . . . . . . . Special . | . . . . . . . . . . . Kinetic 324 | . 30 10 36 30 39 108 71 . . . Thermal 92 | 50 42 . . . . . . . . . Explosive . | . . . . . . . . . . . Electromagnetic 45 | . 35 10 . . . . . . . . Entropic 10 | . . . . . . . . . . 10 Robot Hit Streak 18 | 9 9 6 7 11 10 18 14 . . 3 Robot Miss Streak 5 | 3 4 1 2 1 5 3 2 . . 5 Penetration Max . | . . . . . . . . . . . Secondary Targets 4 | . 1 1 . . . . . . . 2 Max Gunslinging Chain 1 | . 1 1 . . . . . . . 1 Shots Hit Robots 306 | 30 70 13 33 18 20 71 43 . . 8 Core Hits 144 | 9 27 8 17 14 5 37 15 . . 12 Critical Kills 1 | . . . . . . 1 . . . . Critical Parts Destroyed 5 | . 1 . 1 . . . 2 . . 1 Critical Strikes 16 | 2 3 . 2 . . 3 5 . . 1 Burn 3 | 2 1 . . . . . . . . . Destroy 5 | . 1 . 1 . . 1 2 . . . Blast 6 | . . . 1 . . 2 3 . . . Corrupt 1 | . 1 . . . . . . . . . Detonate 1 | . . . . . . . . . . 1 Melee Attacks 11 | . . . 11 . . . . . . . Impact . | . . . . . . . . . . . Slashing 11 | . . . 11 . . . . . . . Piercing . | . . . . . . . . . . . Sneak Attacks . | . . . . . . . . . . . Combat Hostiles . | . . . . . . . . . . . Follow-up Attacks . | . . . . . . . . . . . Damage Inflicted 6234 | 361 977 178 725 349 386 1486 1093 . . 679 Guns 4301 | 361 919 112 267 349 386 1053 393 . . 461 Cannons 1443 | . . 66 244 . . 433 700 . . . Explosions 276 | . 58 . . . . . . . . 218 Melee 214 | . . . 214 . . . . . . . Ramming . | . . . . . . . . . . . Kinetic 4128 | . 213 90 511 349 386 1486 1093 . . . Thermal 984 | 361 405 . . . . . . . . 218 Explosive . | . . . . . . . . . . . Electromagnetic 447 | . 359 88 . . . . . . . . Impact . | . . . . . . . . . . . Slashing 214 | . . . 214 . . . . . . . Piercing . | . . . . . . . . . . . Entropic 461 | . . . . . . . . . . 461 Highest Corruption 4 | . . . . . . 1 4 4 4 4 Average Corruption 3 | . . . . . . 1 2 4 4 4 Corruption Purged . | . . . . . . . . . . . Corruption Blocked . | . . . . . . . . . . . Effects 17 | . . . . . . 2 1 9 5 . Message Errors 5 | . . . . . . . . 4 1 . Matter Fused 4 | . . . . . . . . 2 2 . Heat Flow Errors 2 | . . . . . . . 1 1 . . Energy Discharges 1 | . . . . . . . . . 1 . Data Loss (minor) 3 | . . . . . . 1 . 1 1 . Data Loss (major) 1 | . . . . . . . . 1 . . Alerts 1 | . . . . . . 1 . . . . Overload Shots . | . . . . . . . . . . . Overflow Damage 128 | . 3 . . . . . 125 . . . Projectiles 11 | . . . . . . . 11 . . . Explosions 117 | . 3 . . . . . 114 . . . Melee . | . . . . . . . . . . . Knockbacks 19 | . . . 3 . . 6 10 . . . Impact . | . . . . . . . . . . . Kinetic 19 | . . . 3 . . 6 10 . . . Secondary . | . . . . . . . . . . . Self-Inflicted Damage 418 | . 35 . . . . . 383 . . . Shots 5 | . 1 . . . . . 4 . . . Rammed . | . . . . . . . . . . . Targets Rammed . | . . . . . . . . . . . Kicked . | . . . . . . . . . . . Crushed . | . . . . . . . . . . . Highest Temperature 489 | 220 489 60 . 36 18 204 168 134 . 249 Average Temperature 88 | 82 161 40 . 15 13 69 36 74 . 116 Received Heat Transfer 1109 | . 189 75 114 18 . 459 101 . 18 135 Effects 1 | . 1 . . . . . . . . . Shutdowns 1 | . 1 . . . . . . . . . Siege Activations . | . . . . . . . . . . . Robots Corrupted . | . . . . . . . . . . . Combat Hostiles . | . . . . . . . . . . . Parts Fried 2 | . 1 1 . . . . . . . . Impact Corruptions . | . . . . . . . . . . . Robots Melted . | . . . . . . . . . . . Combat Hostiles . | . . . . . . . . . . . Parts Melted 6 | 3 3 . . . . . . . . . Heat Transferred 2375 | 1115 1160 . . . . . . . . 100 Parts Sabotaged . | . . . . . . . . . . . Parts Stolen . | . . . . . . . . . . . Parts Stripped . | . . . . . . . . . . . Power Chain Reactions 2 | . 2 . . . . . . . . . Alert | -11 -10 -10 -10 -9 -7 -6 -5 -5 -5 -5 ------- Run | Yrd Mat Min Sub Rec Fac Fac Fac Upp Upp War Peak Influence 349 | 40 134 116 . 204 116 176 349 . . . Initial 204 | . 26 46 . 204 94 . 77 . . . Average 68 | 16 60 64 . 55 60 55 150 . . . Maximum Alert Level 1 | . . . . 1 . . 1 . . . Low Security (%) 97 | 100 100 100 . 95 100 100 87 . . . Level 1 2 | . . . . 4 . . 12 . . . Level 2 . | . . . . . . . . . . . Level 3 . | . . . . . . . . . . . Level 4 . | . . . . . . . . . . . Level 5 . | . . . . . . . . . . . High Security . | . . . . . . . . . . . Max Security . | . . . . . . . . . . . Squads Dispatched 12 | . 4 . . . . 2 6 . . . Investigation 3 | . 3 . . . . . . . . . Extermination 3 | . . . . . . 1 2 . . . Reinforcement 5 | . 1 . . . . 1 3 . . . Assault . | . . . . . . . . . . . Garrison 1 | . . . . . . . 1 . . . Intercept . | . . . . . . . . . . . Searches Triggered . | . . . . . . . . . . . Construction Impeded . | . . . . . . . . . . . Haulers Reinforced 2 | . . . . . . 1 1 . . . Active Scanning Responses . | . . . . . . . . . . . Cargo Convoy Interrupts . | . . . . . . . . . . . Stealth | -11 -10 -10 -10 -9 -7 -6 -5 -5 -5 -5 --------- Run | Yrd Mat Min Sub Rec Fac Fac Fac Upp Upp War Distress Signals 2 | . 1 . . . . . . . . 1 Communications Jammed . | . . . . . . . . . . . Distress Signals . | . . . . . . . . . . . Times Spotted 130 | . 21 9 35 2 4 15 14 14 6 10 Peak Tracking Total 11 | . 3 10 4 1 2 5 5 6 4 11 Tactical Retreats 11 | . . . 3 . . . 1 4 3 . Traps | -11 -10 -10 -10 -9 -7 -6 -5 -5 -5 -5 ------- Run | Yrd Mat Min Sub Rec Fac Fac Fac Upp Upp War Traps Triggered 7 | . 2 . 1 . . 2 2 . . . Indirectly . | . . . . . . . . . . . Trap Hack Attempts . | . . . . . . . . . . . Triggered . | . . . . . . . . . . . Disarmed . | . . . . . . . . . . . Reprogrammed . | . . . . . . . . . . . Reused . | . . . . . . . . . . . Traps Extracted . | . . . . . . . . . . . Installed . | . . . . . . . . . . . Triggered 12 | . . . . . . . . . . 12 Machines | -11 -10 -10 -10 -9 -7 -6 -5 -5 -5 -5 ---------- Run | Yrd Mat Min Sub Rec Fac Fac Fac Upp Upp War Machines Disabled 17 | . 1 1 2 1 . 1 11 . . . Max in Single Turn 11 | . 1 1 1 1 . 1 11 . . . Machines Repaired . | . . . . . . . . . . . Machines Dismantled . | . . . . . . . . . . . Machines Sabotaged . | . . . . . . . . . . . Overloaded Fab Kills . | . . . . . . . . . . . Hacking | -11 -10 -10 -10 -9 -7 -6 -5 -5 -5 -5 --------- Run | Yrd Mat Min Sub Rec Fac Fac Fac Upp Upp War Machines Accessed 36 | . 9 . . 14 3 3 3 . . 4 Terminals 17 | . 6 . . 6 1 3 1 . . . Fabricators . | . . . . . . . . . . . Repair Stations 3 | . 1 . . . . . 2 . . . Recycling Units 12 | . 2 . . 8 2 . . . . . Scanalyzers . | . . . . . . . . . . . Garrison Access . | . . . . . . . . . . . Total Hacks 81 | . 20 . . 36 3 6 5 . . 11 Successful 49 | . 11 . . 22 2 2 1 . . 11 Failed 32 | . 9 . . 14 1 4 4 . . . Catastrophic 9 | . 3 . . 3 1 . 2 . . . Database Lockouts . | . . . . . . . . . . . Manual 11 | . 5 . . 2 . 3 1 . . . Terminals 40 | . 11 . . 21 1 6 1 . . . Fabricators . | . . . . . . . . . . . Repair Stations 8 | . 4 . . . . . 4 . . . Recycling Units 22 | . 5 . . 15 2 . . . . . Scanalyzers . | . . . . . . . . . . . Garrison Access . | . . . . . . . . . . . Terminal Hacks 35 | . 6 . . 15 1 2 . . . 11 Record 14 | . . . . 4 . . . . . 10 Part Schematic 1 | . . . . 1 . . . . . . Prototype ID Bank 6 | . 2 . . 4 . . . . . . Open Door 1 | . . . . . . . . . . 1 Open DSF 3 | . . . . . 1 2 . . . . Alert Level 4 | . 1 . . 3 . . . . . . Unreport Threat 2 | . 1 . . 1 . . . . . . Locate Traps 2 | . 2 . . . . . . . . . Extermination Status 1 | . . . . 1 . . . . . . Hauler Manifests 1 | . . . . 1 . . . . . . Fabricator Hacks . | . . . . . . . . . . . Repair Station Hacks 4 | . 3 . . . . . 1 . . . Scan Component 3 | . 2 . . . . . 1 . . . Repair 1 | . 1 . . . . . . . . . Recycling Unit Hacks 10 | . 2 . . 7 1 . . . . . Report Inventory 2 | . 1 . . 1 . . . . . . Retrieve Components 8 | . 1 . . 6 1 . . . . . Scanalyzer . | . . . . . . . . . . . Garrison Access Hacks . | . . . . . . . . . . . Unauthorized Hacks . | . . . . . . . . . . . Terminals . | . . . . . . . . . . . Fabricators . | . . . . . . . . . . . Repair Stations . | . . . . . . . . . . . Recycling Units . | . . . . . . . . . . . Scanalyzers . | . . . . . . . . . . . Garrison Access . | . . . . . . . . . . . Data Cores Recovered . | . . . . . . . . . . . Used . | . . . . . . . . . . . Hacking Detections 20 | . 6 . . 9 1 1 3 . . . Full Trace Events 3 | . 2 . . 1 . . . . . . Feedback Events . | . . . . . . . . . . . Feedback Blocked . | . . . . . . . . . . . Robot Schematics Acquired . | . . . . . . . . . . . Robots Built . | . . . . . . . . . . . Authchips . | . . . . . . . . . . . Time . | . . . . . . . . . . . Total Robot Build Rating . | . . . . . . . . . . . Part Schematics Acquired 1 | . . . . 1 . . . . . . Parts Built . | . . . . . . . . . . . Authchips . | . . . . . . . . . . . Time . | . . . . . . . . . . . Total Part Build Rating . | . . . . . . . . . . . Parts Repaired 1 | . 1 . . . . . . . . . Time 26 | . 26 . . . . . . . . . Parts Recycled . | . . . . . . . . . . . Recycled Matter . | . . . . . . . . . . . Retrieved Matter . | . . . . . . . . . . . Retrieved Components 21 | . 9 . . 9 3 . . . . . Parts Scanalyzed . | . . . . . . . . . . . Part Schematics Acquired . | . . . . . . . . . . . Parts Damaged . | . . . . . . . . . . . Bothacking | -11 -10 -10 -10 -9 -7 -6 -5 -5 -5 -5 ------------ Run | Yrd Mat Min Sub Rec Fac Fac Fac Upp Upp War Used RIF Installer . | . . . . . . . . . . . Robots Hacked . | . . . . . . . . . . . Non-combat . | . . . . . . . . . . . Combat . | . . . . . . . . . . . Robot Hacks Applied . | . . . . . . . . . . . Relay Couplers Released 4 | . . . . . . 4 . . . . Programmers 4 | . . . . . . 4 . . . . Fabnet Peak Effective % . | . . . . . . . . . . . Robots Rewired . | . . . . . . . . . . . Allies Hacked . | . . . . . . . . . . . Hacks Repelled . | . . . . . . . . . . . Allies | -11 -10 -10 -10 -9 -7 -6 -5 -5 -5 -5 -------- Run | Yrd Mat Min Sub Rec Fac Fac Fac Upp Upp War Total Allies . | . . . . . . . . . . . Largest Group . | . . . . . . . . . . . Highest-Rated Group . | . . . . . . . . . . . Highest-Rated Ally . | . . . . . . . . . . . Total Orders . | . . . . . . . . . . . Ally Attacks . | . . . . . . . . . . . Total Damage . | . . . . . . . . . . . Kills . | . . . . . . . . . . . Allies Corrupted . | . . . . . . . . . . . Allies Melted . | . . . . . . . . . . . Intel | -11 -10 -10 -10 -9 -7 -6 -5 -5 -5 -5 ------- Run | Yrd Mat Min Sub Rec Fac Fac Fac Upp Upp War Robot Analysis Total . | . . . . . . . . . . . Derelict Logs Recovered 6 | . . 2 1 . . . . 1 2 . Drone Launches . | . . . . . . . . . . . Drone Recoveries . | . . . . . . . . . . . Exploration | -11 -10 -10 -10 -9 -7 -6 -5 -5 -5 -5 ------------- Run | Yrd Mat Min Sub Rec Fac Fac Fac Upp Upp War Turns Passed 7567 | 157 1017 717 1128 765 805 677 523 310 325 1143 Spaces Moved 5118 | 71 614 421 637 440 451 335 322 631 624 572 Core 1289 | 9 . . . . . . 110 277 624 269 Treads 2618 | . 122 421 637 440 451 335 212 . . . Legs 407 | . 407 . . . . . . . . . Wheels 147 | 62 85 . . . . . . . . . Hover 303 | . . . . . . . . . . 303 Flight 354 | . . . . . . . . 354 . . Fastest Speed 40 | 50 80 160 160 160 160 160 50 40 50 50 Average Speed 128 | 76 122 160 160 160 160 160 129 44 50 190 Slowest Speed 700 | 80 190 160 160 160 160 160 240 50 50 700 Overloaded Moves . | . . . . . . . . . . . Propulsion Burnouts . | . . . . . . . . . . . Robots Hopped . | . . . . . . . . . . . Cave-ins Triggered . | . . . . . . . . . . . Exploration Rate (%) 49 | 3 96 72 40 95 12 8 11 69 72 64 Regions Visited 10 Branch Regions 6 Pre-discovered Areas 2 | . . 2 . . . . . . . . Known Exits Taken 2 | . . . . . 1 1 . . . . Unknown Exits Taken 8 | 1 1 1 1 1 . . 1 1 1 . Scrap Searched 14 | . . 3 5 . . . . 1 5 . Spaces Dug . | . . . . . . . . . . . Terrain Destroyed 56 | . 7 . . 3 . 12 10 . . 24 Melee . | . . . . . . . . . . . Projectile 30 | . . . . 3 . 12 2 . . 13 AOE 26 | . 7 . . . . . 8 . . 11 Terrain Rammed . | . . . . . . . . . . . Walls Destroyed . | . . . . . . . . . . . Machines Disabled . | . . . . . . . . . . . Actions | -11 -10 -10 -10 -9 -7 -6 -5 -5 -5 -5 --------- Run | Yrd Mat Min Sub Rec Fac Fac Fac Upp Upp War Total 5738 | 122 778 446 700 474 512 411 390 659 630 616 Wait 130 | . 52 1 . 3 12 3 15 26 . 18 Move 5108 | 70 613 420 636 439 450 334 321 630 623 572 Hop . | . . . . . . . . . . . Pick Up 88 | 13 14 3 14 8 13 10 11 1 . 1 Fast Attach 35 | 4 5 1 1 1 2 6 6 1 3 5 Attach 30 | 4 1 . 1 1 5 3 10 1 . 4 Detach 4 | . . . . . . . . . . 4 Swap 53 | 3 15 5 8 2 7 9 4 . . . Drop 76 | 3 22 6 11 4 10 10 4 . . 6 Fire 198 | 25 56 10 18 16 13 36 19 . . 5 Melee 11 | . . . 11 . . . . . . . Ram . | . . . . . . . . . . . Kick . | . . . . . . . . . . . Crush . | . . . . . . . . . . . Escape Stasis . | . . . . . . . . . . . Rewire . | . . . . . . . . . . . Trap . | . . . . . . . . . . . Miscellaneous 5 | . . . . . . . . . 4 1 Route ------- -11/Scrapyard -10/Materials (discovered 4 exits: [*Mat x3] / [*Min]) -10/Mines -10/Subcaves -9/Recycling -7/Factory -6/Factory -5/Factory -5/Upper Caves -5/Upper Caves -5/Warlord (discovered 1 exit: [*Pro]) History --------- Turn | Location | Event 19 | -11/Scrapyard | Discovered new exit (range 16) 158 | -11/Scrapyard | Entered Materials 321 | -10/Materials | Discovered new exit (range 11) 328 | -10/Materials | Build established: Mutant 651 | -10/Materials | Discovered new exit (range 11) 724 | -10/Materials | Repaired EM Pulse Gun 884 | -10/Materials | Discovered new exit (range 11) 1012 | -10/Materials | Discovered new exit (range 13) 1175 | -10/Materials | Entered Mines 1194 | -10/Mines | Met a Derelict bent on vengeance 1241 | -10/Mines | A weapon hastily lodged in a ceiling crevice suddenly fell to the ground 1342 | -10/Mines | Found a damaged Exp. Sensor Array with a note attached 1347 | -10/Mines | Found Prototype Device 1364 | -10/Mines | Learned location of Mines (-9) 1414 | -10/Mines | Found a hidden stash of uninstalled traps 1474 | -10/Mines | Assembled infested the area 1479 | -10/Mines | Assisted by a Guerilla fighting off Assembled 1888 | -10/Mines | Discovered new exit (range 4) 1892 | -10/Mines | Entered Subcaves 2296 | -10/Subcaves | Discovered new exit (range 8) 2358 | -10/Subcaves | Shifting Twisted Machinery released Riot Gun 2579 | -10/Subcaves | Shifting Twisted Machinery released Mak. Light Armor Plating 2579 | -10/Subcaves | Core integrity fell below 50% 3020 | -10/Subcaves | Entered Recycling 3772 | -9/Recycling | Discovered new exit (range 9) 3785 | -9/Recycling | Entered Factory 3785 | -7/Factory | Evolved 6 slots: Utility x5, Weapon x1 4098 | -7/Factory | Build established: Scavenger-Tank 4509 | -7/Factory | Discovered new exit (range 14) 4589 | -7/Factory | Identified exit to Factory 4590 | -7/Factory | Entered another Factory area 4590 | -6/Factory | Evolved 2 slots: Propulsion x1, Utility x1 4705 | -6/Factory | Discovered new exit (range 13) 4716 | -6/Factory | Identified exit to DSF 4724 | -6/Factory | Identified exit to Factory 5267 | -6/Factory | Entered another Factory area 5267 | -5/Factory | Evolved 2 slots: Utility x1, Weapon x1 5417 | -5/Factory | Build established: Scavenger-Gunner 5632 | -5/Factory | Lost 3 parts (2n1u) 5698 | -5/Factory | Garrison activated, responded to threat 5724 | -5/Factory | Released all parts (15) 5737 | -5/Factory | Lost 3 parts (1n2w) 5745 | -5/Factory | Discovered new exit (range 13) 5790 | -5/Factory | Entered Upper Caves 5816 | -5/Upper Caves | Encountered a Warlord checkpoint 5919 | -5/Upper Caves | Learned Factory trap positions 5941 | -5/Upper Caves | Spotted B-75 Beast 6000 | -5/Upper Caves | Build established: Mutant 6033 | -5/Upper Caves | Core integrity fell below 50% 6075 | -5/Upper Caves | Core integrity fell below 20% 6096 | -5/Upper Caves | Discovered new exit (range 9) 6100 | -5/Upper Caves | Entered another Upper Caves area 6102 | -5/Upper Caves | Learned location of 1 exit from Factory 6110 | -5/Upper Caves | Encountered a Warlord checkpoint 6236 | -5/Upper Caves | Learned Factory emergency access door positions 6420 | -5/Upper Caves | Discovered new exit (range 9) 6425 | -5/Upper Caves | Entered Warlord 6446 | -5/Warlord | System corruption cleaned by Quarantine Array 6477 | -5/Warlord | Discovered new exit (range 9) 6573 | -5/Warlord | Visited the Vortex Lab 6578 | -5/Warlord | Found Prototype Piercing Weapon 6578 | -5/Warlord | Identified Vortex Lance 6592 | -5/Warlord | Found Prototype Energy Cannon 6592 | -5/Warlord | Identified Vortex Cannon 6593 | -5/Warlord | Warlord's base attacked by MAIN.C 6605 | -5/Warlord | Found Prototype Energy Gun 6605 | -5/Warlord | Identified Vortex Shotgun 6610 | -5/Warlord | Found Vortex Shotgun 6618 | -5/Warlord | Found Vortex Cannon 6943 | -5/Warlord | Warlord forces counterattacked 6946 | -5/Warlord | Found Prototype Device 6946 | -5/Warlord | Identified Wardrone Bay 7268 | -5/Warlord | Warlord base infiltrated, sounded retreat 7377 | -5/Warlord | Met Warlord 7547 | -5/Warlord | Spotted Striker 7557 | -5/Warlord | Destroyed Striker 7560 | -5/Warlord | Spotted Executioner 7568 | -5/Warlord | Destroyed by G-50 Soldier with Heavy Laser Last Messages --------------- 07493_ ANNOUNCEMENT: Detected 3 Grunt squads, 1 Melee squad, with prototype support. 07504_ Acquired 18 matter. 07506_ Acquired 134 matter. 07509_ Acquired 19 matter. 07514_ Acquired 43 matter. 07548_ UG-6JL(g) destroyed. 07557_ Striker destroyed. 07557_ Switching to secondary target: G-50 Soldier. 07560_ Penetrated by Slug. 07562_ The unstable cave ceiling collapses. 07563_ G-50 Soldier destroyed. 07563_ Entropic reaction triggered in Lgt. Antimatter Reactor. 07563_ Switching to secondary target: Executioner. 07563_ G-67 Veteran destroyed. 07563_ L-41 Fighter destroyed. 07563_ G-50 Soldier destroyed. 07563_ Penetrated by Slug. 07566_ G-50 Soldier destroyed. 07566_ Imp. Medium Armor Plating destroyed. Map ----- +----------------------------------------------------+ | #### #?????????????????????????????????????? | | #?????????????????????????????????????? | | #?????????????????????????????#####????? | | #????????????????????????????## ###??? | | #???????????????????????????## ##?? | | #??????????????????????????## < #?? | | #??????????????????????????# #?? | | #?????????????????????????????# #??? | | #?????????????????????????????# #???? | | #????????????????????? ???????# #???? | | #?????????????????????? ????????# #????? | | ##?????????????????????# ?????### ##????? | | #?????????????????????# ##### ###???? | | ##?????????????????????# ###?? | | # #??????????????????????## ### ### ##? | | # #????????????????????????# ##?#^ #? | | # #??????""????????????????### ##?# #? | | # #?????#""#?????????????????# #?# ##? | | # #?????#""#?????????????????## ### #?? | | # #?????#""##############???#### ### ##? | | # #######"";;;;## # #### #?!# #### #? | | " "" [% ; ;;# ## ### [[### ##? | | " %"=*=!= # g= = ##?? | | !% "!/!%=!% %E% [##??? | | *%%[***!*%%= ! = %%g *[#???? | | "^ & !%%%%!=%*[ @% %%[%*%[%g% = #??? | | =!! %"= !!!!*=%|[ !%%[ =* ### #??? | | %% "% [!!%%|%[%[%= === ## #??? | | " % !![==* [[ ; # ## #??? | | " ""&*= = * # ##=%![#??# ??? | | " "" [= ######### ###??# #?? | | " #######""###### #??????## #????? #?? | | #?????#""#????#######?????## #???? #?? | | #?????#""#????????????????# ##???? ##?? | | #??????""????????????????## ##????? #??? | | # #????????????????????????# #?????? ##??? | | # ###????????????????????????# #?????? #???? | | # #??????????????????????????# ##?????? #???? | | # #??????????????????????????# #??????? ##??? | | # #?????????????????????????## ##????## #??? | | # #????????????????????????## ##??## #??? | | # #????????????????????????# ##?# #??? | | # #????????????????????????# ## ### #??? | | # #???????????????????????# #?## ## #??? | | # #?????????????????????? ???## ## #??? | | # #????????????????????? ????# ## ##??? | | # #???????????????????# ##?????## #???? | | # #???????????????????####????????### ##???? | | #+##????????????????????????????????######????? | | #??????????????????????????????????????????? | +----------------------------------------------------+ Best States ------------- Heat Dissipation 86 Coolant Potential 80 Energy Generation 18 Energy Capacity 250 Matter Stores 300 Matter Capacity 300 Sight Range 16 Robot Scan Range 16 Terrain Scan Density 210 Armor Coverage 225 Resistance: KI 20 Resistance: TH 10 Resistance: EX 25 Weapon Cycling 20 Evasion (%) 62 Targeting Accuracy 6 Target Analysis 5 Recoil Reduction 3 Offensive Hacking 10 Defensive Hacking 10 Item Schematics ----------------- Autogun | -9/Recycling | Hacked Robot Schematics ------------------ None Fabricated ------------ Nothing Alien Tech Used ----------------- None Achievements -------------- A Powerful Ally? Universal Adapter Challenges ------------ None Game ------ Seed StormVortexPurifier Manual? 0 Play Time 02:54:01 Cumulative 29.4 hours Start 2024.04.02 @ 18:54:33 End 2024.04.02 @ 21:59:07 Sessions 1 Manual Loads 0 Difficulty Rogue Special Mode None Game No. 10 Rogue 9 Adventurer 1 Explorer 0 Win Type - Total 0 Types 0/0/0/0/0/0/0/0/0 Lore% 17 Gallery% 20 Achievement% 17 Wizard Run 0 Options --------- Layout 0 ASCII 0 Keyboard 0 Movement Mouse Keybinds 0 Fullscreen 2 Font 18/Smallcaps Map View 76x50 Zoom Use 0% Tactical HUD 1 Map Filters NONE Filters NONE Steam 1 RUN: 7877feae-16d7-46c4-9cb9-337e4f91823a